[Event "4NCL Spring GM Round Robin 2024"]
[Site "Peterborough"]
[Date "2024.03.24"]
[Round "2.1"]
[White "Gumularz, Szymon"]
[Black "Cherniaev, Alexander"]
[Result "1-0"]
[ECO "C41"]
[WhiteElo "2590"]
[BlackElo "2375"]
[Annotator "TA"]
[PlyCount "55"]
[EventDate "2024.03.22"]
[EventType "tourn"]
[EventCountry "ENG"]
[SourceTitle "playchess.com"]
[Source "ChessBase"]
[SourceQuality "1"]
[TimeControl "5400+30"]

{[%evp 9,55,22,28,12,56,58,45,71,81,65,80,79,75,64,96,17,43,37,54,51,66,59,131,114,145,106,102,125,252,262,227,212,344,344,312,310,367,378,433,412,721,493,568,578,545,554,603,571]} 1. d4 {[%emt 0:00:07]} d6 {[%emt 0:00:22]} 2. e4 {[%emt 0:00:27]} Nf6 {[%emt 0:00:32]} 3. Nc3 {[%emt 0:00:08]} e5 {[%emt 0:00:07]} 4. Nf3 {[%emt 0:00:50]} Nbd7 {[%emt 0:00:07]} 5. Rg1 {[%emt 0:02:13]} c6 {[%emt 0:09:20]} 6. g4 {[%emt 0:00:16][%cal Bg2g4,Bg4g5][%mdl 32]} Qa5 {[%emt 0:01:25]} 7. Bd2 {[%emt 0:09:50]} Qb6 {[%emt 0:06:47]} 8. g5 {[%emt 0:00:23] White is slightly better.} Nh5 {[%emt 0:00:43][%cal Bf6h5,Bh5g7,Bg7e6][%mdl 32]} 9. a3 {[%emt 0:00:57]} g6 {[%emt 0:01:30]} 10. Be3 {[%emt 0:00:20]} Qc7 {[%emt 0:01:02]} (10... Qxb2 $2 {loses.} 11. Na4 $18) 11. Qd2 {[%emt 0:13:30]} a6 {[%emt 0:05:02]} 12. Ne2 {[%emt 0:03:39] White is more active.} (12. O-O-O $16) 12... Be7 {[%emt 0:11:10]} 13. Ng3 {[%emt 0:00:30]} Ng7 {[%emt 0:00:30]} 14. h4 {[%emt 0:01:02]} b5 {[%emt 0:02:41]} 15. O-O-O {[%emt 0:09:49]} Bb7 {[%emt 0:01:33]} ({Black should try} 15... c5 $14) 16. Bh3 {[%emt 0:01:11]} Ne6 {[%emt 0:03:10] [#]} 17. Nf5 $1 {[%emt 0:05:38][%mdl 512]} gxf5 {[%emt 0:02:43]} 18. exf5 {[%emt 0:00:06]} e4 {[%emt 0:09:24] This move loses the game for Black.} (18... Nxd4 $16 {is a better defense.} 19. Nxd4 c5 (19... exd4 $2 {perishes.} 20. Bxd4 O-O-O 21. Bxh8 $18)) 19. fxe6 $18 {[%emt 0:00:09]} fxe6 {[%emt 0:00:03]} 20. Nh2 {[%emt 0:05:00][%cal Bf3h2,Bh2g4,Bg4h6][%mdl 32]} Nf8 {[%emt 0:00:29]} (20... Nb6 $142 21. Bxe6 Bc8) 21. Ng4 {[%emt 0:09:49]} O-O-O {[%emt 0:00:21]} 22. h5 {[%emt 0:00:04] Prevents Ng6} Kb8 {[%emt 0:00:47]} 23. Nh6 {[%emt 0:00:23]} Re8 {[%emt 0:01:14]} 24. d5 {[%emt 0:02:58] [#] Qd4 is the strong threat.} exd5 {[%emt 0:01:18]} (24... e5 $142 25. dxc6 Bxc6) 25. Bd4 {[%emt 0:00:20] White is clearly winning.} Nd7 {[%emt 0:00:30]} 26. Bxh8 {[%emt 0:00:19]} Rxh8 {[%emt 0:00:05]} 27. g6 {[%emt 0:00:28] Threatens to win with g7.} hxg6 {[%emt 0:00:11]} 28. hxg6 {[%emt 0:00:06] Weighted Error Value: White=0.21 (precise) /Black=0.42.  Mistake:       	White=1     	Black=4      Inaccurate:     	White=1     	Black=3      OK:         	White=10    	Black=2      Best:        	White=4     	Black=2} 1-0

[Event "4NCL Spring GM Round Robin 2024"]
[Site "Peterborough"]
[Date "2024.03.24"]
[Round "2.2"]
[White "Agdelen, Huseyin Can"]
[Black "Harvey, Marcus R"]
[Result "0-1"]
[ECO "B15"]
[WhiteElo "2408"]
[BlackElo "2468"]
[Annotator "TA"]
[PlyCount "78"]
[EventDate "2024.03.22"]
[EventType "tourn"]
[EventCountry "ENG"]
[SourceTitle "playchess.com"]
[Source "ChessBase"]
[SourceQuality "1"]
[TimeControl "5400+30"]

{[%evp 14,78,14,17,32,29,44,28,26,18,32,21,24,8,6,0,0,0,0,24,37,28,16,0,0,0,0,0,0,0,0,0,93,-11,0,-7,-7,0,0,-195,-189,-273,-217,-232,-233,-231,-243,-235,-211,-217,-216,-312,-133,-276,-282,-391,-384,-449,-439,-496,-390,-446,-419,-440,-353,-345,-345]} 1. e4 {[%emt 0:00:34]} c6 {[%emt 0:00:04]} 2. d4 {[%emt 0:00:46]} d5 {[%emt 0:00:04]} 3. Nc3 {[%emt 0:00:10]} dxe4 {[%emt 0:00:13]} 4. Nxe4 {[%emt 0:00:06]} Nf6 {[%emt 0:00:04]} 5. Nxf6+ {[%emt 0:01:21]} exf6 {[%emt 0:00:02]} 6. c3 {[%emt 0:00:11]} Bd6 {[%emt 0:00:03]} 7. Bd3 {[%emt 0:00:16]} O-O {[%emt 0:00:27]} 8. Qc2 {[%emt 0:00:17]} Re8+ {[%emt 0:00:04]} 9. Ne2 {[%emt 0:00:04]} h5 {[%emt 0:00:04]} 10. Be3 {[%emt 0:02:29]} Nd7 {[%emt 0:00:05] Weiß hat minimalen Vorteil.} 11. O-O-O {[%emt 0:00:39]} Nf8 {[%emt 0:00:03]} 12. Kb1 {[%emt 0:02:22]} Be6 {[%emt 0:00:06]} 13. c4 {[%emt 0:00:38]} Rc8 {[%emt 0:00:08]} 14. a3 {[%emt 0:00:41]} Ng6 {[%emt 0:16:41][%cal Ob7b5]} 15. Nc3 {[%emt 0:04:15]} Ne7 {[%emt 0:03:50]} 16. Rhe1 {[%emt 0:03:53]} a6 {[%emt 0:08:44][%cal Ob7b5]} 17. h3 {[%emt 0:05:21][%cal Og2g4]} h4 {[%emt 0:04:17]} 18. Bc1 {[%emt 0:30:17][%cal Oe1e6]} b5 {[%emt 0:02:33]} 19. Rxe6 {[%emt 0:23:44]} fxe6 {[%emt 0:00:41]} 20. Qe2 $1 {[%emt 0:00:04]} Qd7 {[%emt 0:19:26]} 21. Ne4 {[%emt 0:06:32]} Nf5 {[%emt 0:43:21]} 22. Qg4 {[%emt 0:05:37]} Be7 {[%emt 0:00:00]} (22... Nxd4 23. Nxf6+ Kf7 24. Qg6+ (24. Nxd7 c5 $18) (24. Qxd4 gxf6 25. c5 Rh8 $18) (24. Nxe8 Kxe8 25. Bg6+ Kd8 $18) 24... Kf8 25. Nxd7+ Ke7 26. Qxg7+ Kd8 27. Bg5+ (27. Qxd4 Rc7 28. Nb6 Rd7 29. Nxd7 Kxd7 30. Bf4 Re7 31. Qxd6+ Ke8 32. Bg6+ Kf8 33. Bh6+ Kg8 34. Qd8+ Re8 35. Qxe8#) 27... Re7 28. Bxe7+ Kc7 29. Bxd6+ (29. Qxd4 Bxe7 30. Qa7+ Kd8) 29... Kxd6 30. Qxd4+) (22... Kf8 $11) 23. Qh5 {[%emt 0:07:22]} ({Weiss kommt nicht vorbei an} 23. Qg6 $1 $16) 23... Red8 {[%emt 0:00:00] Und ...Qe8 würde nun gewinnen.} (23... Nxd4 $2 24. Ng5 Bc5 (24... fxg5 $2 25. Bg6 $18) 25. Bg6 $18 (25. Bh7+ Kf8 $18)) 24. g4 {[%emt 0:00:51]} hxg3 {[%emt 0:00:00]} (24... Nxd4 $2 25. g5 fxg5 (25... f5 $2 26. g6 $18) 26. Nxg5 $18) 25. Nxg3 {[%emt 0:00:25]} Qe8 $1 {[%emt 0:00:00]} ({Minderwertig wäre} 25... Nxd4 26. Qh7+ Kf8 27. Qh8+ (27. Bg6 Bxa3 28. Qh8+ Ke7 $18) 27... Kf7 28. Bg6+ Kxg6 29. Qh5#) 26. Qg4 {[%emt 0:02:49]} (26. Qxe8+ $11 {und Weiss muss sich keine Sorgen machen.} Rxe8 27. Nxf5 exf5 28. Bxf5) 26... Rxd4 $19 {[%emt 0:00:00]} 27. Bxf5 {[%emt 0:00:42]} (27. Qe2 $142 Nxg3 28. fxg3) 27... Rxg4 {[%emt 0:00:00]} 28. Bxe6+ {[%emt 0:00:06]} Kf8 $1 {[%emt 0:00:00]} 29. hxg4 {[%emt 0:00:25] [#]} Bc5 $1 {[%emt 0:00:00][%csl LRe6,LRf2]} 30. Bd7 {[%emt 0:01:21]} Qd8 {[%emt 0:00:00] Und jetzt ...Rc7 wäre schön.} 31. Ne4 {[%emt 0:00:20]} Be7 {[%emt 0:00:00]} 32. Kc2 {[%emt 0:00:50] [#]} (32. Be3 $142 Kf7 (32... bxc4 $2 33. Nc5 $19) 33. c5) 32... Kf7 {[%emt 0:00:00]} 33. Bf5 {[%emt 0:00:59] Ein Fehler, der zur Niederlage führt.} (33. g5 $17) 33... Qh8 {[%emt 0:00:00] Droht ...Rd8 und aus.} 34. g5 {[%emt 0:00:30] g6+ ist eine echte Drohung.} Rd8 {[%emt 0:00:00] ...Rxd1 wäre nun fies.} ({Bloß nicht} 34... fxg5 35. Rd3 $19) 35. g6+ {[%emt 0:00:31]} Kf8 {[%emt 0:00:00] Droht stark ...Rxd1.} 36. Re1 {[%emt 0:00:31]} bxc4 {[%emt 0:00:00]} 37. Be3 {[%emt 0:00:18]} Rd5 {[%emt 0:00:10]} 38. Ng3 {[%emt 0:00:42] [#]} Rxf5 {[%emt 0:00:42]} 39. Nxf5 {[%emt 0:00:24][%cal Oe3h6] Schwarz muss nun Bh6! beachten.} Qh5 {[%emt 0:00:07][%csl LRf5,LRg6] Gewichteter Fehlerwert: Weiß=0.34/Schwarz=0.21 (präzise) .  Verlustzug:     	Weiß=1     	---        Gewinn verpasst:   	---       	Schwarz=1     Fehler:       	Weiß=4     	Schwarz=1     Ungenau:       	Weiß=1     	---        OK:         	Weiß=11    	Schwarz=17    Bester:       	Weiß=1     	Schwarz=2     Stark:        	Weiß=1     	Schwarz=3} 0-1

[Event "4NCL Spring GM Round Robin 2024"]
[Site "Peterborough"]
[Date "2024.03.24"]
[Round "2.3"]
[White "Wadsworth, Matthew J"]
[Black "Teclaf, Pawel"]
[Result "1/2-1/2"]
[ECO "E15"]
[WhiteElo "2450"]
[BlackElo "2556"]
[Annotator "TA"]
[PlyCount "22"]
[EventDate "2024.03.22"]
[EventType "tourn"]
[EventCountry "ENG"]
[SourceTitle "playchess.com"]
[Source "ChessBase"]
[SourceQuality "1"]
[TimeControl "5400+30"]

{[%evp 17,22,10,34,22,16,20,17]} 1. d4 {[%emt 0:00:02]} Nf6 {[%emt 0:00:06]} 2. c4 {[%emt 0:00:08]} e6 {[%emt 0:00:05]} 3. Nf3 {[%emt 0:00:26]} b6 {[%emt 0:00:06]} 4. g3 {[%emt 0:00:17]} Bb4+ {[%emt 0:00:05]} 5. Bd2 {[%emt 0:01:25]} Be7 {[%emt 0:00:09]} 6. Bg2 {[%emt 0:02:50]} c6 {[%emt 0:00:40][%cal Bc7c6,Bc6c5][%mdl 32]} 7. O-O {[%emt 0:02:51]} d5 {[%emt 0:00:32]} 8. Bc3 {[%emt 0:01:31]} Nbd7 {[%emt 0:03:45]} 9. Nbd2 {[%emt 0:01:16]} Ba6 {[%emt 0:01:26]} 10. b3 {[%emt 0:02:19]} O-O {[%emt 0:03:07]} 11. Re1 {[%emt 0:03:10]} c5 {[%emt 0:02:47] Hier war wenig los.   Gewichteter Fehlerwert: Weiß=0.06 (makellos) /Schwarz=0.12 (sehr präzise) .  OK:         	Weiß=1     	Schwarz=1} 1/2-1/2

[Event "4NCL Spring GM Round Robin 2024"]
[Site "Peterborough"]
[Date "2024.03.24"]
[Round "2.4"]
[White "Royal, Shreyas"]
[Black "Chow, Samuel"]
[Result "1-0"]
[ECO "A16"]
[WhiteElo "2457"]
[BlackElo "2356"]
[Annotator "TA"]
[PlyCount "73"]
[EventDate "2024.03.22"]
[EventType "tourn"]
[EventCountry "ENG"]
[SourceTitle "playchess.com"]
[Source "ChessBase"]
[SourceQuality "1"]
[TimeControl "5400+30"]

{[%evp 23,73,52,47,50,61,56,41,55,45,52,52,40,33,0,0,0,0,0,39,65,84,87,79,38,33,39,462,432,733,728,675,579,801,325,305,325,689,601,622,84,336,329,490,467,451,460,1254,1202,1559,1340,29987,29988]} 1. Nf3 {[%emt 0:00:06]} Nf6 {[%emt 0:01:07]} 2. c4 {[%emt 0:00:06]} g6 {[%emt 0:00:10]} 3. Nc3 {[%emt 0:00:06]} Bg7 {[%emt 0:00:05]} 4. e4 {[%emt 0:00:27]} e5 {[%emt 0:00:12]} 5. Nxe5 {[%emt 0:00:35]} O-O {[%emt 0:00:08]} 6. Nf3 {[%emt 0:00:05] A16: Englische Eröffnung.} Re8 {[%emt 0:00:05]} 7. d3 {[%emt 0:00:06]} d5 {[%emt 0:00:12]} 8. cxd5 {[%emt 0:00:14]} Nxd5 {[%emt 0:00:07]} 9. Bd2 $1 {[%emt 0:00:05] 9.Bd2 punktet besser als 9.Nxd5.} Bg4 {[%emt 0:00:20]} 10. Be2 {[%emt 0:00:24]} Bxf3 {[%emt 0:00:18]} 11. gxf3 {[%emt 0:00:07]} Nb4 {[%emt 0:00:08]} 12. Be3 {[%emt 0:00:05]} N8c6 {[%emt 0:00:40]} 13. a3 {[%emt 0:00:21]} Na6 {[%emt 0:00:07]} 14. Nb5 {[%emt 0:00:04]} Nd4 {[%emt 0:07:10]} 15. Nxd4 {[%emt 0:00:08]} Bxd4 {[%emt 0:00:07]} 16. h4 {[%emt 0:00:05]} Qf6 $146 {[%emt 0:07:55]} ({Predecessor:} 16... Nc5 17. f4 Ne6 18. Qd2 Bg7 19. h5 Nd4 20. hxg6 hxg6 21. Bd1 c5 22. Rc1 Rc8 {1-0 Indjic,A (2606)-Djukic,N (2517) FRM-chT 31st 2023 (6.1)}) 17. Rc1 {[%emt 0:09:18]} Bxb2 {[%emt 0:07:11]} 18. d4 {[%emt 0:02:51]} (18. Rc2 $5) 18... Bxc1 {[%emt 0:04:02]} (18... Bxa3 19. Rb1 $14) 19. Qxc1 {[%emt 0:00:10]} h5 {[%emt 0:14:34]} 20. e5 {[%emt 0:08:49]} Qf5 {[%emt 0:02:19]} 21. Rg1 $1 {[%emt 0:02:00]} c5 {[%emt 0:05:27]} 22. Rg5 {[%emt 0:01:08]} Qh3 {[%emt 0:02:02]} 23. Qc4 {[%emt 0:00:32]} (23. Qc2 $5 Kf8 (23... Qxh4 $2 24. Rxg6+ Kf8 25. Bh6+ Ke7 26. Bg5+ $18) 24. d5 $16) 23... Kg7 {[%emt 0:02:41]} 24. d5 {[%emt 0:00:16]} Qh2 $2 {[%emt 0:06:27][%mdl 8192]} ({Günstiger ist} 24... Qh1+ $14 25. Kd2 Qa1) 25. Qe4 $18 {[%emt 0:01:34]} (25. Bxc5 $2 Rac8 (25... Rxe5 $2 26. Bd4 $18) (25... Nxc5 $2 26. Qxc5 Rxe5 27. Rxe5 $19) 26. Qd4 Nxc5 $19 (26... Rxc5 27. e6+ Kh7 28. Bd3 $11)) 25... Nc7 {[%emt 0:03:31] [#]} (25... Rad8 $142 26. Bd3 Kf8) 26. Bd3 $1 $18 {[%emt 0:01:24]} (26. Bxc5 Rad8 27. Bd3 (27. Bxa7 $2 Qh1+ 28. Kd2 Rxd5+ 29. Bd3 Rxd3+ 30. Qxd3 Qxh4 $19) (27. e6 $2 Nxe6 28. dxe6 Rxe6 $19) 27... Kh8 $11 (27... Nxd5 28. Rxg6+ Kh7 29. Rf6+ Kh8 30. Qh7#) (27... Nxd5 28. Rxg6+ Kh7 29. Rf6+ Kh8 30. Qh7#)) 26... Kh8 {[%emt 0:08:46]} 27. Rxh5+ {[%emt 0:01:20]} (27. Bxc5 f5 28. Qd4 Qxe5+ (28... Rxe5+ $2 29. Kd2 $18) 29. Kf1 Kh7 (29... Nxd5 $2 30. Bxf5 Nf6 31. Bxg6 $18) 30. Bxf5 gxf5 $11 (30... Qxd4 31. Bxg6+ Kh6 32. Bxd4 $16)) 27... Kg8 {[%emt 0:00:22]} 28. Rg5 {[%emt 0:00:46]} (28. Qg4 $142 {[%cal Od3g6] jetzt Bxg6! und aus.} Rxe5 29. Bxg6) 28... Kh8 $18 {[%emt 0:00:33]} 29. f4 {[%emt 0:30:38]} (29. Bxc5 Rad8 $11 (29... f5 30. Qd4 $16) (29... f5 30. Qd4 $16)) 29... Qxh4 $2 {[%emt 0:03:10]} (29... Rad8) 30. Rg1 {[%emt 0:06:39]} (30. Bxc5 Rad8 31. Rg1 (31. Bxa7 $2 Nxd5 32. Bc2 Qxf4 $19) 31... Kg8 $18 (31... Nxd5 $2 32. Rh1 $18)) 30... Kg7 {[%emt 0:01:48]} 31. Bxc5 $2 {[%emt 0:00:45]} (31. d6 $18 {und der Rest ist Schweigen.}) 31... Rad8 $2 {[%emt 0:01:09][%mdl 8192] [#]} (31... Nxd5 $16 {ist eine bessere Verteidigung.} 32. Qxd5 Qxf4) 32. Bc4 $1 $18 {[%emt 0:00:17]} (32. Bxa7 Nxd5 (32... Rxd5 33. Bb6 $17) 33. Be3 (33. Rxg6+ $2 fxg6 34. Qxg6+ Kh8 $19) 33... Nxe3 34. Qxe3 Rxd3 35. Qxd3 Qxf4 $17) 32... Qh5 {[%emt 0:08:16]} (32... Nxd5 $142 33. Bxd5 Rxd5 34. Qxd5 Qxf4) 33. Bd4 {[%emt 0:01:53]} (33. Bxa7 f5 34. Qg2 Qg4 $11) 33... Kf8 {[%emt 0:03:28]} 34. f5 {[%emt 0:05:12]} (34. Bxa7 Kg7 35. Bd4 Rh8) 34... Qh6 {[%emt 0:03:14]} (34... Qxf5 $142 35. Bc5+ Re7 36. Bxe7+ Kxe7 37. d6+ Kf8 38. Qxf5 (38. dxc7 $2 {ist ein Selbstmatt.} Qxe4+ 39. Be2 Qb1+) 38... gxf5 39. dxc7 Rc8) 35. Bc5+ $18 {[%emt 0:01:56]} (35. Bxa7 $2 {zu gefräßig.} Qc1+ 36. Ke2 Qxg1 $19) 35... Kg7 {[%emt 0:00:20]} 36. Be3 {[%emt 0:01:17]} (36. Bxa7 $2 {verliert.} Qc1+ 37. Ke2 Qxg1 $19) 36... Qh2 {[%emt 0:01:20]} 37. f6+ {[%emt 0:00:16]} 1-0

[Event "4NCL Spring GM Round Robin 2024"]
[Site "Peterborough"]
[Date "2024.03.24"]
[Round "2.5"]
[White "Makkar, Rajat"]
[Black "Kalavannan, Koby"]
[Result "1-0"]
[ECO "A44"]
[WhiteElo "2434"]
[BlackElo "2324"]
[Annotator "TA"]
[PlyCount "89"]
[EventDate "2024.03.22"]
[EventType "tourn"]
[EventCountry "ENG"]
[SourceTitle "playchess.com"]
[Source "ChessBase"]
[SourceQuality "1"]
[TimeControl "5400+30"]

{[%evp 11,89,74,81,70,81,69,77,67,68,68,72,73,79,16,11,15,30,9,39,39,59,43,63,56,41,30,27,37,38,18,60,68,70,36,94,96,87,88,83,82,101,100,88,107,140,154,120,139,204,204,204,197,204,208,250,250,314,309,308,308,329,329,703,738,748,750,750,728,712,682,1578,1564,29979,29980,29980,29981,29981,29982,29988,29989]} 1. d4 {[%emt 0:00:08]} c5 {[%emt 0:08:34]} 2. d5 {[%emt 0:00:40]} e5 {[%emt 0:00:01]} 3. e4 {[%emt 0:01:14]} d6 {[%emt 0:00:01]} 4. Nc3 {[%emt 0:00:53]} a6 {[%emt 0:00:01]} 5. a4 {[%emt 0:00:18]} Be7 {[%emt 0:00:01]} 6. Nf3 {[%emt 0:16:15]} Bg4 {[%emt 0:00:02]} 7. b3 {[%emt 0:05:39]} Nd7 {[%emt 0:01:51]} 8. Bd3 {[%emt 0:02:34]} h5 {[%emt 0:04:41]} 9. h3 {[%emt 0:02:25] Weiß steht besser.} Bxf3 {[%emt 0:00:06]} 10. Qxf3 {[%emt 0:00:12]} Bg5 {[%emt 0:00:06] Schwarz ist schwach auf den weissen Feldern} 11. Bb2 {[%emt 0:00:41]} Qf6 {[%emt 0:04:26]} 12. Ne2 {[%emt 0:10:26]} (12. Qe2 $16) 12... Qxf3 $11 {[%emt 0:09:50]} 13. gxf3 {[%emt 0:00:03]} Ne7 {[%emt 0:01:37]} 14. Rg1 {[%emt 0:03:43]} f6 {[%emt 0:01:46]} 15. Ng3 {[%emt 0:09:22][%cal Be2g3,Bg3f1,Bf1e3,Be3c4][%mdl 32]} g6 {[%emt 0:03:37]} 16. Nf1 {[%emt 0:01:19]} b6 {[%emt 0:09:10]} 17. Ne3 {[%emt 0:02:09][%cal Of3f4]} Kd8 {[%emt 0:00:48]} 18. Nc4 {[%emt 0:03:56]} Kc7 {[%emt 0:00:14]} 19. Ke2 {[%emt 0:00:03]} Rhg8 {[%emt 0:05:37]} ({Nicht} 19... b5 $2 20. axb5 axb5 21. Na3 $18) 20. Na3 {[%emt 0:02:34]} Kb7 {[%emt 0:00:37]} 21. Bc3 {[%emt 0:02:46]} Bh4 {[%emt 0:06:35]} 22. Rgb1 {[%emt 0:02:09] Weiß steht aktiver.} Rgb8 {[%emt 0:18:38]} ({Besser ist} 22... f5 $14) 23. b4 {[%emt 0:03:30] Weiß verwandelt nun seinen Vorteil.} Kc7 {[%emt 0:03:15]} 24. Kf1 {[%emt 0:08:23]} f5 {[%emt 0:04:00]} 25. Nc4 {[%emt 0:02:30]} b5 {[%emt 0:07:08]} 26. axb5 {[%emt 0:02:40]} axb5 {[%emt 0:00:01]} 27. Na3 {[%emt 0:00:31]} Rxa3 {[%emt 0:02:40]} 28. Rxa3 {[%emt 0:00:29]} c4 {[%emt 0:00:04]} 29. Be2 {[%emt 0:03:59][%cal Bd3e2,Be2f1,Bf1h3][%mdl 32]} f4 {[%emt 0:02:46]} (29... Nf6 $16) 30. Rba1 {[%emt 0:01:03]} Nc8 {[%emt 0:00:41]} 31. Ra6 {[%emt 0:01:55]} Bd8 {[%emt 0:05:15]} 32. Ke1 {[%emt 0:03:31]} Kb7 {[%emt 0:00:18] [#]} 33. h4 $1 {[%emt 0:00:30]} Bxh4 {[%emt 0:01:56]} (33... Nf6 34. Bf1) 34. Bf1 {[%emt 0:00:16]} Kc7 {[%emt 0:00:35][%cal Bb7c7,Bc7d8,Bd8e7][%mdl 32]} 35. Bh3 {[%emt 0:00:14][%cal Oa6a7] Droht stark Ra7+!} Ndb6 {[%emt 0:00:13]} 36. R1a5 {[%emt 0:00:44]} Na4 $2 {[%emt 0:00:45] [#]} (36... Kb7 37. Bxc8+ Kxc8 38. Rxb5 Bd8) 37. Rc6+ $18 {[%emt 0:00:40]} Kd8 {[%emt 0:00:04]} 38. Ba1 {[%emt 0:00:34]} Nab6 {[%emt 0:00:57][%cal Ba4b6,Bb6a4,Ba4c3][%mdl 32]} 39. Rxb5 {[%emt 0:00:43]} Ra8 {[%emt 0:00:19]} 40. Bc3 {[%emt 0:00:46]} Na4 {[%emt 0:00:34]} 41. Ra5 {[%emt 0:00:17]} Rxa5 {[%emt 0:00:38]} 42. Rxc8+ {[%emt 0:00:06] Weiß setzt Matt.} Ke7 {[%emt 0:00:00]} 43. bxa5 {[%emt 0:00:08]} Nxc3 {[%emt 0:00:02]} 44. a6 {[%emt 0:00:10]} Nb5 {[%emt 0:01:27]} 45. Rb8 {[%emt 0:00:18] Gewichteter Fehlerwert: Weiß=0.08 (makellos) /Schwarz=0.35.  Fehler:       	Weiß=1     	Schwarz=3     Ungenau:       	Weiß=1     	Schwarz=3     OK:         	Weiß=15    	Schwarz=12    Bester:       	---       	Schwarz=3} 1-0

[Event "4NCL Spring GM Round Robin 2024"]
[Site "Peterborough"]
[Date "2024.03.24"]
[Round "3.1"]
[White "Kalavannan, Koby"]
[Black "Gumularz, Szymon"]
[Result "0-1"]
[ECO "A37"]
[WhiteElo "2324"]
[BlackElo "2590"]
[Annotator "RC"]
[PlyCount "124"]
[EventDate "2024.03.22"]
[EventType "tourn"]
[EventCountry "ENG"]
[SourceTitle "playchess.com"]
[Source "ChessBase"]
[SourceQuality "1"]
[TimeControl "5400+30"]

1. c4 {[%emt 0:07:11]} b6 {[%emt 0:00:12]} 2. Nf3 {[%emt 0:01:44]} Bb7 {[%emt 0:00:13]} 3. g3 {[%emt 0:01:02]} c5 {[%emt 0:01:07]} 4. Bg2 {[%emt 0:00:17]} g6 {[%emt 0:00:08]} 5. O-O {[%emt 0:00:39]} Bg7 {[%emt 0:00:07]} 6. Nc3 {[%emt 0:00:48]} Nc6 {[%emt 0:01:34]} 7. b3 {[%emt 0:02:19]} Nh6 {[%emt 0:02:29]} 8. Bb2 {[%emt 0:00:29]} Nf5 {[%emt 0:00:08]} 9. d3 {[%emt 0:04:31]} O-O {[%emt 0:00:58]} 10. Qd2 {[%emt 0:00:17]} e6 {[%emt 0:00:28]} 11. e4 {[%emt 0:00:47]} Nfe7 {[%emt 0:11:18]} 12. Rad1 {[%emt 0:02:50]} d6 {[%emt 0:00:34]} 13. h4 {[%emt 0:04:28]} Nd4 {[%emt 0:04:02]} 14. Nxd4 {[%emt 0:01:20]} cxd4 {[%emt 0:01:54]} 15. Nb5 {[%emt 0:13:24]} e5 {[%emt 0:00:13]} 16. Ba3 {[%emt 0:00:28]} Nc8 {[%emt 0:00:07]} 17. Bh3 {[%emt 0:09:47]} f5 {[%emt 0:02:58]} 18. exf5 {[%emt 0:00:17]} a6 {[%emt 0:03:17]} 19. Nxd4 {[%emt 0:01:43]} exd4 {[%emt 0:00:07]} 20. fxg6 {[%emt 0:00:01]} hxg6 {[%emt 0:06:30]} 21. Rde1 {[%emt 0:10:22]} Bf3 {[%emt 0:00:19]} 22. Re6 {[%emt 0:00:16]} Kh7 {[%emt 0:00:07]} 23. Rfe1 {[%emt 0:00:31]} Ra7 {[%emt 0:01:44]} 24. Qg5 {[%emt 0:01:12]} Qxg5 {[%emt 0:09:08]} 25. hxg5 {[%emt 0:00:01]} Rd7 {[%emt 0:05:52]} 26. Bg2 {[%emt 0:26:47]} Rdf7 {[%emt 0:07:22]} 27. Bh3 {[%emt 0:02:49]} Rd8 {[%emt 0:00:37]} 28. Bg2 {[%emt 0:02:00]} Rff8 {[%emt 0:17:46]} 29. Bxf3 {[%emt 0:03:26]} Rxf3 {[%emt 0:00:05]} 30. Re8 {[%emt 0:00:12]} Rf8 {[%emt 0:00:38]} 31. R8e6 {[%emt 0:00:23]} Rf3 {[%emt 0:13:26]} 32. Re8 {[%emt 0:00:01]} Rxe8 {[%emt 0:00:24]} 33. Rxe8 {[%emt 0:00:01]} Rf8 {[%emt 0:00:06]} 34. Re4 {[%emt 0:04:05]} Rd8 {[%emt 0:00:34]} 35. Bb2 {[%emt 0:00:21]} d5 {[%emt 0:02:59]} 36. Rh4+ {[%emt 0:00:00]} Kg8 {[%emt 0:00:06]} 37. Bxd4 {[%emt 0:00:01]} dxc4 {[%emt 0:00:46]} 38. Bxg7 {[%emt 0:00:01]} Kxg7 {[%emt 0:00:12]} 39. Rxc4 {[%emt 0:01:03]} Ne7 {[%emt 0:01:10]} 40. Rc7 {[%emt 0:00:13]} Kf7 {[%emt 0:00:04]} 41. Rb7 {[%emt 0:00:52]} Rd6 {[%emt 0:09:11]} 42. Kf1 {[%emt 0:01:18]} Ke6 {[%emt 0:00:00]} 43. Ke2 {[%emt 0:00:27]} Nc6 {[%emt 0:00:00]} 44. f4 {[%emt 0:00:45]} Nd4+ {[%emt 0:00:00]} 45. Kf2 {[%emt 0:00:03]} Kf5 {[%emt 0:00:00]} 46. Rf7+ {[%emt 0:00:28]} Kg4 {[%emt 0:00:00]} 47. Rf6 {[%emt 0:00:23]} Re6 {[%emt 0:00:00]} 48. Rxe6 {[%emt 0:01:35]} Nxe6 {[%emt 0:00:00]} 49. Ke3 {[%emt 0:00:25]} Kxg3 {[%emt 0:00:00]} 50. Ke4 {[%emt 0:00:34]} Nxf4 {[%emt 0:00:00]} 51. d4 {[%emt 0:00:23]} Kg4 {[%emt 0:00:00]} 52. d5 {[%emt 0:00:38]} Kxg5 {[%emt 0:00:34]} 53. d6 {[%emt 0:00:09]} Ne6 {[%emt 0:00:18]} 54. Ke5 {[%emt 0:00:09]} Nd8 {[%emt 0:00:03]} 55. d7 {[%emt 0:00:15]} Kh4 {[%emt 0:00:06]} 56. Kf6 {[%emt 0:01:16]} g5 {[%emt 0:00:03]} 57. Ke7 {[%emt 0:00:04]} Nb7 {[%emt 0:00:02]} 58. d8=Q {[%emt 0:00:32]} Nxd8 {[%emt 0:00:03]} 59. Kxd8 {[%emt 0:00:07]} g4 {[%emt 0:00:03]} 60. Kc7 {[%emt 0:00:05]} g3 {[%emt 0:00:02]} 61. Kxb6 {[%emt 0:00:04]} g2 {[%emt 0:00:03]} 62. Kxa6 {[%emt 0:00:04]} g1=Q {[%emt 0:00:05]} 0-1